[Event "*** Titled Tuesday Blitz"]
[Site "Chess.com"]
[Date "2021.02.16"]
[Round "6"]
[White "Gulkov_Igor"]
[Black "DenisQ"]
[Result "1/2-1/2"]
[WhiteElo "2472"]
[BlackElo "2647"]
[TimeControl "180+1"]
[EndTime "11:03:34 PST"]
[Termination "Game drawn by agreement"]

1. Nf3 {[%clk 0:03:00.9]} 1... Nf6 {[%clk 0:02:59.3]} 2. c4 {[%clk 0:02:59]}
2... c6 {[%clk 0:02:58.1]} 3. Nc3 {[%clk 0:02:58.4]} 3... d5 {[%clk 0:02:59]} 4.
d4 {[%clk 0:02:58.4]} 4... e6 {[%clk 0:02:57.6]} 5. Bg5 {[%clk 0:02:57.2]} 5...
h6 {[%clk 0:02:57.1]} 6. Bxf6 {[%clk 0:02:56.7]} 6... Qxf6 {[%clk 0:02:58]} 7.
e3 {[%clk 0:02:56.9]} 7... Nd7 {[%clk 0:02:57.5]} 8. Rc1 {[%clk 0:02:56.1]} 8...
g6 {[%clk 0:02:55.9]} 9. Bd3 {[%clk 0:02:56]} 9... dxc4 {[%clk 0:02:48.4]} 10.
Bxc4 {[%clk 0:02:55.7]} 10... Bg7 {[%clk 0:02:48.6]} 11. O-O {[%clk 0:02:55.7]}
11... O-O {[%clk 0:02:48.1]} 12. e4 {[%clk 0:02:55.7]} 12... e5 {[%clk
0:02:44.9]} 13. d5 {[%clk 0:02:55.4]} 13... Nb6 {[%clk 0:02:44.6]} 14. dxc6
{[%clk 0:02:55.2]} 14... bxc6 {[%clk 0:02:28.7]} 15. Bb3 {[%clk 0:02:52.5]}
15... Bg4 {[%clk 0:02:27]} 16. Na4 {[%clk 0:02:44.5]} 16... Rfd8 {[%clk
0:02:09.8]} 17. Qe2 {[%clk 0:02:43.8]} 17... h5 {[%clk 0:02:06.6]} 18. h3 {[%clk
0:02:42.9]} 18... Bxf3 {[%clk 0:02:06.2]} 19. Qxf3 {[%clk 0:02:42.7]} 19... Qxf3
{[%clk 0:02:05.7]} 20. gxf3 {[%clk 0:02:42.7]} 20... Rd6 {[%clk 0:01:49.1]} 21.
Rc2 {[%clk 0:02:36.4]} 1/2-1/2

[Event "*** Titled Tuesday Blitz"]
[Site "Chess.com"]
[Date "2021.02.16"]
[Round "6"]
[White "olksuna"]
[Black "alejogarcia1999"]
[Result "1-0"]
[WhiteElo "2688"]
[BlackElo "2500"]
[TimeControl "180+1"]
[EndTime "11:03:43 PST"]
[Termination "olksuna won by resignation"]

1. e4 {[%clk 0:03:00.9]} 1... c5 {[%clk 0:02:59.8]} 2. Nf3 {[%clk 0:03:00.9]}
2... e6 {[%clk 0:03:00.4]} 3. d4 {[%clk 0:03:00.9]} 3... cxd4 {[%clk 0:03:01.3]}
4. Nxd4 {[%clk 0:03:01.8]} 4... Nc6 {[%clk 0:03:01.9]} 5. Nc3 {[%clk 0:03:01.1]}
5... Nf6 {[%clk 0:03:02.1]} 6. a3 {[%clk 0:03:00.4]} 6... Be7 {[%clk 0:03:01.6]}
7. Be2 {[%clk 0:02:59.5]} 7... O-O {[%clk 0:03:01.6]} 8. Be3 {[%clk 0:02:59.3]}
8... d5 {[%clk 0:03:01.2]} 9. exd5 {[%clk 0:02:58.6]} 9... Nxd5 {[%clk
0:03:01.1]} 10. Nxd5 {[%clk 0:02:58.8]} 10... Qxd5 {[%clk 0:02:59.1]} 11. Bf3
{[%clk 0:02:59.1]} 11... Qa5+ {[%clk 0:02:59]} 12. b4 {[%clk 0:02:54.3]} 12...
Qc7 {[%clk 0:02:50.8]} 13. Nxc6 {[%clk 0:02:51.7]} 13... bxc6 {[%clk 0:02:51.7]}
14. Qd3 {[%clk 0:02:41.6]} 14... Bb7 {[%clk 0:02:21.2]} 15. O-O {[%clk
0:02:29.3]} 15... a5 {[%clk 0:02:21.1]} 16. c4 {[%clk 0:02:15.2]} 16... axb4
{[%clk 0:02:16.8]} 17. axb4 {[%clk 0:02:16.1]} 17... Bxb4 {[%clk 0:02:06.6]} 18.
c5 {[%clk 0:02:15.2]} 18... Ba6 {[%clk 0:02:04.6]} 19. Rxa6 {[%clk 0:02:13.8]}
19... Rxa6 {[%clk 0:02:04.5]} 20. Qxa6 {[%clk 0:02:13.8]} 1-0

[Event "*** Titled Tuesday Blitz"]
[Site "Chess.com"]
[Date "2021.02.16"]
[Round "6"]
[White "Chesseyat004"]
[Black "NewBornNow"]
[Result "1-0"]
[WhiteElo "2488"]
[BlackElo "2754"]
[TimeControl "180+1"]
[EndTime "11:04:18 PST"]
[Termination "Chesseyat004 won by checkmate"]

1. e4 {[%clk 0:03:00.9]} 1... c5 {[%clk 0:02:58.7]} 2. Nf3 {[%clk 0:03:00.7]}
2... d6 {[%clk 0:02:58.3]} 3. d4 {[%clk 0:03:00.8]} 3... cxd4 {[%clk 0:02:59.2]}
4. Nxd4 {[%clk 0:03:01.7]} 4... Nf6 {[%clk 0:02:59.8]} 5. Nc3 {[%clk 0:03:02.2]}
5... a6 {[%clk 0:02:59.9]} 6. Be2 {[%clk 0:03:02.3]} 6... e6 {[%clk 0:02:59.7]}
7. Be3 {[%clk 0:03:01.8]} 7... Be7 {[%clk 0:03:00.6]} 8. g4 {[%clk 0:03:01.3]}
8... O-O {[%clk 0:03:01.5]} 9. g5 {[%clk 0:03:00.5]} 9... Nfd7 {[%clk
0:03:02.4]} 10. Qd2 {[%clk 0:02:58]} 10... b5 {[%clk 0:03:02.1]} 11. a3 {[%clk
0:02:57.7]} 11... Bb7 {[%clk 0:03:02.4]} 12. h4 {[%clk 0:02:55.4]} 12... Nb6
{[%clk 0:03:02.5]} 13. f4 {[%clk 0:02:48]} 13... N8d7 {[%clk 0:03:02]} 14. O-O-O
{[%clk 0:02:41.3]} 14... Rc8 {[%clk 0:03:00.6]} 15. h5 {[%clk 0:02:06.4]} 15...
Nc4 {[%clk 0:02:58.7]} 16. Bxc4 {[%clk 0:02:06]} 16... Rxc4 {[%clk 0:02:59.1]}
17. h6 {[%clk 0:01:44.3]} 17... g6 {[%clk 0:02:57.8]} 18. b3 {[%clk 0:01:37.1]}
18... Rxc3 {[%clk 0:02:54.9]} 19. Qxc3 {[%clk 0:01:37.1]} 19... e5 {[%clk
0:02:54.1]} 20. Nc6 {[%clk 0:01:26.8]} 20... Bxc6 {[%clk 0:02:53.3]} 21. Qxc6
{[%clk 0:01:27.7]} 21... exf4 {[%clk 0:02:53.3]} 22. Bxf4 {[%clk 0:01:27]} 22...
Bxg5 {[%clk 0:02:53.3]} 23. Qxd6 {[%clk 0:01:26.3]} 23... Bxf4+ {[%clk
0:02:43.2]} 24. Qxf4 {[%clk 0:01:27.2]} 24... Qe7 {[%clk 0:02:41.7]} 25. Rxd7
{[%clk 0:01:24.4]} 25... Qxd7 {[%clk 0:02:40.3]} 26. Qf6 {[%clk 0:01:24.7]}
26... Qd2+ {[%clk 0:02:38.6]} 27. Kxd2 {[%clk 0:01:24.1]} 27... Rd8+ {[%clk
0:02:39]} 28. Qxd8# {[%clk 0:01:24]} 1-0

[Event "*** Titled Tuesday Blitz"]
[Site "Chess.com"]
[Date "2021.02.16"]
[Round "6"]
[White "FMJoseHerrera"]
[Black "BahadirOzen"]
[Result "1-0"]
[WhiteElo "2604"]
[BlackElo "2742"]
[TimeControl "180+1"]
[EndTime "11:04:22 PST"]
[Termination "FMJoseHerrera won by resignation"]

1. Nf3 {[%clk 0:03:00.9]} 1... g6 {[%clk 0:02:59.7]} 2. g3 {[%clk 0:03:01]} 2...
Bg7 {[%clk 0:03:00.2]} 3. Bg2 {[%clk 0:03:01.3]} 3... d6 {[%clk 0:03:00.5]} 4.
d3 {[%clk 0:03:01.8]} 4... Nf6 {[%clk 0:02:57.9]} 5. Nc3 {[%clk 0:03:02.3]} 5...
O-O {[%clk 0:02:57.1]} 6. h4 {[%clk 0:03:02.7]} 6... c5 {[%clk 0:02:44]} 7. h5
{[%clk 0:03:02.1]} 7... Nxh5 {[%clk 0:02:43.6]} 8. Bg5 {[%clk 0:03:01.6]} 8...
Nc6 {[%clk 0:02:25.1]} 9. Qd2 {[%clk 0:02:58.4]} 9... f5 {[%clk 0:02:17]} 10.
Bh6 {[%clk 0:02:57.5]} 10... e6 {[%clk 0:02:12.3]} 11. O-O-O {[%clk 0:02:55.4]}
11... Bd7 {[%clk 0:02:09.7]} 12. Rh4 {[%clk 0:02:53.8]} 12... Bxh6 {[%clk
0:02:03.6]} 13. Qxh6 {[%clk 0:02:53.3]} 13... Qf6 {[%clk 0:02:04.5]} 14. Rdh1
{[%clk 0:02:47.2]} 14... Rad8 {[%clk 0:01:56.6]} 15. g4 {[%clk 0:02:01]} 15...
fxg4 {[%clk 0:01:52]} 16. Rxg4 {[%clk 0:02:01.9]} 16... Kh8 {[%clk 0:01:42.8]}
17. Ne4 {[%clk 0:01:55.7]} 17... Qg7 {[%clk 0:01:36.2]} 18. Rxh5 {[%clk
0:01:52.9]} 1-0

[Event "*** Titled Tuesday Blitz"]
[Site "Chess.com"]
[Date "2021.02.16"]
[Round "6"]
[White "vladimirdamjanovic"]
[Black "kamilianin235"]
[Result "1-0"]
[WhiteElo "2539"]
[BlackElo "2191"]
[TimeControl "180+1"]
[EndTime "11:04:24 PST"]
[Termination "vladimirdamjanovic won by resignation"]

1. d4 {[%clk 0:03:00.9]} 1... d5 {[%clk 0:02:59.4]} 2. Nc3 {[%clk 0:03:00.6]}
2... Nf6 {[%clk 0:02:55]} 3. Bf4 {[%clk 0:02:59.9]} 3... Bf5 {[%clk 0:02:50.7]}
4. f3 {[%clk 0:02:58.7]} 4... e6 {[%clk 0:02:49.8]} 5. g4 {[%clk 0:02:55.6]}
5... Bg6 {[%clk 0:02:45.1]} 6. h4 {[%clk 0:02:55.8]} 6... h6 {[%clk 0:02:40.8]}
7. e3 {[%clk 0:02:55.7]} 7... Bd6 {[%clk 0:02:36.6]} 8. Nh3 {[%clk 0:02:55.7]}
8... Nbd7 {[%clk 0:02:34.4]} 9. Bd3 {[%clk 0:02:54.9]} 9... Bxd3 {[%clk
0:02:31]} 10. Qxd3 {[%clk 0:02:55.8]} 10... Bxf4 {[%clk 0:02:29.9]} 11. Nxf4
{[%clk 0:02:55.4]} 11... c5 {[%clk 0:02:30.8]} 12. O-O-O {[%clk 0:02:53.6]}
12... Rc8 {[%clk 0:02:27.9]} 13. g5 {[%clk 0:02:53.8]} 13... c4 {[%clk
0:02:21.2]} 14. Qe2 {[%clk 0:02:49.1]} 14... Ng8 {[%clk 0:02:17.1]} 15. g6
{[%clk 0:02:48.4]} 15... Ngf6 {[%clk 0:02:01]} 16. e4 {[%clk 0:02:44.6]} 16...
dxe4 {[%clk 0:01:57.1]} 17. gxf7+ {[%clk 0:02:34.6]} 17... Kxf7 {[%clk
0:01:55.2]} 18. fxe4 {[%clk 0:02:35.5]} 18... Qa5 {[%clk 0:01:27.4]} 19. e5
{[%clk 0:02:33.8]} 19... Nd5 {[%clk 0:01:25.7]} 20. Nfxd5 {[%clk 0:02:20.6]}
20... exd5 {[%clk 0:01:23.3]} 21. e6+ {[%clk 0:02:21.5]} 1-0

[Event "*** Titled Tuesday Blitz"]
[Site "Chess.com"]
[Date "2021.02.16"]
[Round "6"]
[White "zimmm36"]
[Black "InitiatingASC"]
[Result "1-0"]
[WhiteElo "2288"]
[BlackElo "2421"]
[TimeControl "180+1"]
[EndTime "11:05:05 PST"]
[Termination "zimmm36 won by resignation"]

1. d4 {[%clk 0:03:00.9]} 1... d5 {[%clk 0:02:58.3]} 2. Nf3 {[%clk 0:02:57]} 2...
e6 {[%clk 0:02:58]} 3. g3 {[%clk 0:02:57]} 3... c5 {[%clk 0:02:58.3]} 4. Bg2
{[%clk 0:02:56.8]} 4... Nc6 {[%clk 0:02:58.2]} 5. O-O {[%clk 0:02:53.9]} 5...
Nf6 {[%clk 0:02:57.4]} 6. c4 {[%clk 0:02:50.5]} 6... Be7 {[%clk 0:02:54.4]} 7.
cxd5 {[%clk 0:02:49.9]} 7... exd5 {[%clk 0:02:55.3]} 8. dxc5 {[%clk 0:02:50.8]}
8... Bxc5 {[%clk 0:02:54.8]} 9. Qc2 {[%clk 0:02:51.7]} 9... Be7 {[%clk
0:02:53.2]} 10. Rd1 {[%clk 0:02:46]} 10... O-O {[%clk 0:02:50.5]} 11. Nc3 {[%clk
0:02:43.3]} 11... Be6 {[%clk 0:02:43.6]} 12. Ng5 {[%clk 0:02:37.3]} 12... Rc8
{[%clk 0:02:39.5]} 13. Nxd5 {[%clk 0:02:36.2]} 13... Bxd5 {[%clk 0:02:30.2]} 14.
Bxd5 {[%clk 0:02:30.8]} 14... Nb4 {[%clk 0:02:26.5]} 15. Bxf7+ {[%clk
0:02:29.2]} 15... Kh8 {[%clk 0:02:24.2]} 16. Rxd8 {[%clk 0:02:27.8]} 16... Nxc2
{[%clk 0:02:24.3]} 17. Rxf8+ {[%clk 0:02:27.1]} 17... Rxf8 {[%clk 0:02:22]} 18.
Rb1 {[%clk 0:02:23.7]} 18... Ng4 {[%clk 0:02:09.5]} 19. Bb3 {[%clk 0:02:18.9]}
19... Nd4 {[%clk 0:02:09.6]} 20. Nf7+ {[%clk 0:02:18.5]} 20... Rxf7 {[%clk
0:01:58.1]} 21. Bxf7 {[%clk 0:02:16.8]} 21... Nxe2+ {[%clk 0:01:58.1]} 22. Kg2
{[%clk 0:02:16.3]} 22... Ne5 {[%clk 0:01:53.7]} 23. Bb3 {[%clk 0:02:15.4]} 23...
h6 {[%clk 0:01:44.6]} 24. Bf4 {[%clk 0:02:04.7]} 24... Nd3 {[%clk 0:01:39.4]}
25. Be3 {[%clk 0:01:54.5]} 25... Bf6 {[%clk 0:01:27.3]} 26. Bc4 {[%clk
0:01:49.6]} 1-0

[Event "*** Titled Tuesday Blitz"]
[Site "Chess.com"]
[Date "2021.02.16"]
[Round "6"]
[White "Angel_Hranitel_37"]
[Black "Vuk2000"]
[Result "1-0"]
[WhiteElo "2506"]
[BlackElo "2669"]
[TimeControl "180+1"]
[EndTime "11:05:23 PST"]
[Termination "Angel_Hranitel_37 won by checkmate"]

1. d4 {[%clk 0:03:00.9]} 1... Nf6 {[%clk 0:02:59.1]} 2. Nf3 {[%clk 0:03:00.7]}
2... e6 {[%clk 0:02:59.3]} 3. g3 {[%clk 0:02:59.8]} 3... b5 {[%clk 0:02:59.1]}
4. Bg2 {[%clk 0:02:58.9]} 4... Bb7 {[%clk 0:02:59.7]} 5. O-O {[%clk 0:02:58.5]}
5... c5 {[%clk 0:02:58.8]} 6. c3 {[%clk 0:02:45.3]} 6... cxd4 {[%clk 0:02:57.1]}
7. cxd4 {[%clk 0:02:44.9]} 7... Be7 {[%clk 0:02:55.3]} 8. Bg5 {[%clk 0:02:34.1]}
8... O-O {[%clk 0:02:54.7]} 9. e3 {[%clk 0:02:32.6]} 9... b4 {[%clk 0:02:53.6]}
10. Nbd2 {[%clk 0:02:29.8]} 10... d5 {[%clk 0:02:53.4]} 11. Nb3 {[%clk
0:02:30.4]} 11... Nbd7 {[%clk 0:02:50.9]} 12. Qe2 {[%clk 0:02:25.3]} 12... Qb6
{[%clk 0:02:50.3]} 13. Rfc1 {[%clk 0:02:24.8]} 13... a5 {[%clk 0:02:50.4]} 14.
Bxf6 {[%clk 0:02:23.7]} 14... Nxf6 {[%clk 0:02:23.8]} 15. Nc5 {[%clk 0:02:20.6]}
15... Bxc5 {[%clk 0:02:24.3]} 16. dxc5 {[%clk 0:02:21.5]} 16... Qc7 {[%clk
0:02:22.5]} 17. c6 {[%clk 0:02:15.9]} 17... Ba6 {[%clk 0:02:19.5]} 18. Qc2
{[%clk 0:02:16.4]} 18... Rfc8 {[%clk 0:02:16.3]} 19. a3 {[%clk 0:02:11.6]} 19...
Qb6 {[%clk 0:02:00.2]} 20. axb4 {[%clk 0:01:57.7]} 20... axb4 {[%clk 0:01:58.7]}
21. Ne5 {[%clk 0:01:55.4]} 21... Ne8 {[%clk 0:01:43.8]} 22. Nd7 {[%clk
0:01:27.9]} 22... Qc7 {[%clk 0:01:35]} 23. Qc5 {[%clk 0:01:28.4]} 23... Bc4
{[%clk 0:01:18.4]} 24. Qf8# {[%clk 0:01:22.1]} 1-0

[Event "*** Titled Tuesday Blitz"]
[Site "Chess.com"]
[Date "2021.02.16"]
[Round "6"]
[White "stepanosinovsky"]
[Black "SanQui14"]
[Result "1-0"]
[WhiteElo "2312"]
[BlackElo "2428"]
[TimeControl "180+1"]
[EndTime "11:05:23 PST"]
[Termination "stepanosinovsky won by resignation"]

1. e4 {[%clk 0:03:00.9]} 1... e6 {[%clk 0:02:56.3]} 2. d4 {[%clk 0:02:58.7]}
2... d5 {[%clk 0:02:56.3]} 3. Nc3 {[%clk 0:02:58.6]} 3... Bb4 {[%clk 0:02:55.2]}
4. e5 {[%clk 0:02:57]} 4... c5 {[%clk 0:02:55.5]} 5. a3 {[%clk 0:02:55.2]} 5...
Bxc3+ {[%clk 0:02:55.9]} 6. bxc3 {[%clk 0:02:56.1]} 6... Qc7 {[%clk 0:02:56.4]}
7. Qg4 {[%clk 0:02:55.2]} 7... f5 {[%clk 0:02:55.5]} 8. Qg3 {[%clk 0:02:48.7]}
8... Ne7 {[%clk 0:02:53.7]} 9. Ne2 {[%clk 0:02:30.6]} 9... O-O {[%clk
0:02:53.2]} 10. a4 {[%clk 0:02:21.8]} 10... Nbc6 {[%clk 0:02:52.1]} 11. Ba3
{[%clk 0:02:20.6]} 11... b6 {[%clk 0:02:40.9]} 12. dxc5 {[%clk 0:02:11.1]} 12...
bxc5 {[%clk 0:02:29.6]} 13. Bxc5 {[%clk 0:02:10.3]} 13... Re8 {[%clk 0:02:26.2]}
14. Bd6 {[%clk 0:01:56.9]} 14... Qa5 {[%clk 0:02:25.8]} 15. Nf4 {[%clk
0:01:56.6]} 15... Bd7 {[%clk 0:02:20.2]} 16. Bb5 {[%clk 0:01:53.4]} 16... Nc8
{[%clk 0:02:17.1]} 17. Nh5 {[%clk 0:01:47.8]} 17... g6 {[%clk 0:02:07.9]} 18.
Nf6+ {[%clk 0:01:47.6]} 18... Kf7 {[%clk 0:02:08]} 19. Nxd7 {[%clk 0:01:38.2]}
19... Nxd6 {[%clk 0:02:02.1]} 20. exd6 {[%clk 0:01:34.6]} 20... Nd4 {[%clk
0:01:52.8]} 21. O-O {[%clk 0:01:12.7]} 21... Nxb5 {[%clk 0:01:41.7]} 22. axb5
{[%clk 0:01:13.6]} 22... Qxb5 {[%clk 0:01:42.5]} 23. Ne5+ {[%clk 0:01:13]} 23...
Kg7 {[%clk 0:01:42.5]} 24. Rfb1 {[%clk 0:01:12.5]} 24... Qc5 {[%clk 0:01:41.6]}
25. Rb7+ {[%clk 0:01:11.4]} 25... Kg8 {[%clk 0:01:40.7]} 26. Nxg6 {[%clk
0:01:07.4]} 1-0

[Event "*** Titled Tuesday Blitz"]
[Site "Chess.com"]
[Date "2021.02.16"]
[Round "6"]
[White "EvgenyT"]
[Black "bakki78"]
[Result "1-0"]
[WhiteElo "2935"]
[BlackElo "2715"]
[TimeControl "180+1"]
[EndTime "11:05:30 PST"]
[Termination "EvgenyT won by resignation"]

1. c4 {[%clk 0:03:00.9]} 1... e5 {[%clk 0:02:58.5]} 2. g3 {[%clk 0:03:00.1]}
2... c6 {[%clk 0:02:52.1]} 3. Nf3 {[%clk 0:02:55.7]} 3... e4 {[%clk 0:02:50.3]}
4. Nd4 {[%clk 0:02:55.5]} 4... Qb6 {[%clk 0:02:50.2]} 5. Nb3 {[%clk 0:02:48.1]}
5... a5 {[%clk 0:02:50.2]} 6. d4 {[%clk 0:02:29.6]} 6... a4 {[%clk 0:02:22.3]}
7. c5 {[%clk 0:02:27.5]} 7... Qd8 {[%clk 0:02:10.7]} 8. N3d2 {[%clk 0:02:25.5]}
8... d5 {[%clk 0:01:57.1]} 9. cxd6 {[%clk 0:02:23]} 9... Nf6 {[%clk 0:01:54.1]}
10. Bg2 {[%clk 0:02:20.2]} 10... e3 {[%clk 0:01:53.7]} 11. fxe3 {[%clk
0:02:19.3]} 11... Bxd6 {[%clk 0:01:54.3]} 12. e4 {[%clk 0:02:15.9]} 12... Bc7
{[%clk 0:01:50.5]} 13. e5 {[%clk 0:02:11.8]} 13... Nd5 {[%clk 0:01:46.6]} 14.
Ne4 {[%clk 0:02:07.7]} 14... a3 {[%clk 0:01:21.6]} 15. Nxa3 {[%clk 0:02:06.4]}
15... Ba5+ {[%clk 0:01:19.9]} 16. Kf2 {[%clk 0:02:05.4]} 16... O-O {[%clk
0:01:18.5]} 17. Rf1 {[%clk 0:02:04.8]} 17... f6 {[%clk 0:01:16.6]} 18. exf6
{[%clk 0:01:56.9]} 18... Bf5 {[%clk 0:01:14.2]} 19. Kg1 {[%clk 0:01:55.3]} 19...
Bxe4 {[%clk 0:01:13.7]} 20. Bxe4 {[%clk 0:01:54.9]} 20... Nxf6 {[%clk
0:01:14.3]} 21. Bf3 {[%clk 0:01:50.8]} 21... Bc7 {[%clk 0:01:13.9]} 22. Kg2
{[%clk 0:01:45.2]} 22... Nbd7 {[%clk 0:01:12.8]} 23. Qb3+ {[%clk 0:01:42.3]}
23... Kh8 {[%clk 0:01:11.6]} 24. Qxb7 {[%clk 0:01:39.2]} 24... Nb6 {[%clk
0:01:11.3]} 25. Qxc6 {[%clk 0:01:37.5]} 25... Nbd5 {[%clk 0:01:10.8]} 26. Bxd5
{[%clk 0:01:30.7]} 1-0

[Event "*** Titled Tuesday Blitz"]
[Site "Chess.com"]
[Date "2021.02.16"]
[Round "6"]
[White "dretch"]
[Black "francyIM"]
[Result "1-0"]
[WhiteElo "2849"]
[BlackElo "2684"]
[TimeControl "180+1"]
[EndTime "11:05:40 PST"]
[Termination "dretch won by resignation"]

1. d4 {[%clk 0:03:00.9]} 1... d5 {[%clk 0:02:54.7]} 2. c4 {[%clk 0:03:01.1]}
2... c6 {[%clk 0:02:54.7]} 3. Nc3 {[%clk 0:03:01.3]} 3... Nf6 {[%clk 0:02:53.2]}
4. e3 {[%clk 0:03:01.1]} 4... a6 {[%clk 0:02:53]} 5. b3 {[%clk 0:02:56.2]} 5...
Bf5 {[%clk 0:02:51.4]} 6. Nf3 {[%clk 0:02:54]} 6... e6 {[%clk 0:02:50.8]} 7. Be2
{[%clk 0:02:50.9]} 7... h6 {[%clk 0:02:49.6]} 8. O-O {[%clk 0:02:49.7]} 8...
Nbd7 {[%clk 0:02:49.6]} 9. Bd3 {[%clk 0:02:46.3]} 9... Bxd3 {[%clk 0:02:49.3]}
10. Qxd3 {[%clk 0:02:46.3]} 10... Bb4 {[%clk 0:02:49.9]} 11. a3 {[%clk
0:02:43.5]} 11... Bxc3 {[%clk 0:02:46.9]} 12. Qxc3 {[%clk 0:02:43.8]} 12... O-O
{[%clk 0:02:47.8]} 13. a4 {[%clk 0:02:39.1]} 13... Re8 {[%clk 0:02:47.3]} 14.
Ba3 {[%clk 0:02:38.3]} 14... Ne4 {[%clk 0:02:46.6]} 15. Qc2 {[%clk 0:02:37.6]}
15... b5 {[%clk 0:02:44.6]} 16. Rfc1 {[%clk 0:02:26.4]} 16... bxc4 {[%clk
0:02:41]} 17. bxc4 {[%clk 0:02:26]} 17... Nb6 {[%clk 0:02:39.4]} 18. Ne5 {[%clk
0:02:22.5]} 18... Rc8 {[%clk 0:02:37.5]} 19. Rab1 {[%clk 0:02:11.7]} 19... f6
{[%clk 0:02:24.7]} 20. a5 {[%clk 0:02:02.2]} 20... Na8 {[%clk 0:02:12.1]} 21.
Ng6 {[%clk 0:02:00.2]} 21... Kh7 {[%clk 0:02:05.3]} 22. Nf4 {[%clk 0:01:56.8]}
22... Qxa5 {[%clk 0:01:58.4]} 23. Bb4 {[%clk 0:01:55.4]} 23... Qd8 {[%clk
0:01:53.7]} 24. f3 {[%clk 0:01:54.5]} 24... e5 {[%clk 0:01:52.9]} 25. Ne2 {[%clk
0:01:47.9]} 25... exd4 {[%clk 0:01:51.5]} 26. exd4 {[%clk 0:01:47.6]} 26... f5
{[%clk 0:01:47.5]} 27. fxe4 {[%clk 0:01:47.2]} 27... fxe4 {[%clk 0:01:46.1]} 28.
cxd5 {[%clk 0:01:45.5]} 28... cxd5 {[%clk 0:01:46]} 29. Qxc8 {[%clk 0:01:43.3]}
29... Qxc8 {[%clk 0:01:46.9]} 30. Rxc8 {[%clk 0:01:43.1]} 30... Rxc8 {[%clk
0:01:47.8]} 31. Ba5 {[%clk 0:01:36.2]} 31... g5 {[%clk 0:01:38.2]} 32. Nc3
{[%clk 0:01:30.5]} 32... Rc4 {[%clk 0:01:34.9]} 33. Rb7+ {[%clk 0:01:24.8]}
33... Kg6 {[%clk 0:01:33.3]} 34. Ra7 {[%clk 0:01:23.9]} 34... Nb6 {[%clk
0:01:31.2]} 35. Rxa6 {[%clk 0:01:23.2]} 35... Rxd4 {[%clk 0:01:29.7]} 36. Bxb6
{[%clk 0:01:22.4]} 36... Kh5 {[%clk 0:01:30.6]} 37. Bxd4 {[%clk 0:01:22.2]} 1-0

[Event "*** Titled Tuesday Blitz"]
[Site "Chess.com"]
[Date "2021.02.16"]
[Round "6"]
[White "Smile2005"]
[Black "verdest"]
[Result "0-1"]
[WhiteElo "2345"]
[BlackElo "2500"]
[TimeControl "180+1"]
[EndTime "11:05:50 PST"]
[Termination "verdest won by resignation"]

1. Nf3 {[%clk 0:00:17]} 1... Nf6 {[%clk 0:02:47.3]} 2. g3 {[%clk 0:00:17.9]}
2... e6 {[%clk 0:02:47.5]} 3. Bg2 {[%clk 0:00:18.8]} 3... d5 {[%clk 0:02:48.3]}
4. O-O {[%clk 0:00:19.7]} 4... c5 {[%clk 0:02:48.7]} 5. d3 {[%clk 0:00:20.6]}
5... Nc6 {[%clk 0:02:49.2]} 6. Nbd2 {[%clk 0:00:21.5]} 6... Be7 {[%clk
0:02:49.2]} 7. e4 {[%clk 0:00:22.4]} 7... O-O {[%clk 0:02:49.7]} 8. e5 {[%clk
0:00:22.9]} 8... Nd7 {[%clk 0:02:49.2]} 9. Re1 {[%clk 0:00:23.8]} 9... Qc7
{[%clk 0:02:49.7]} 10. Qe2 {[%clk 0:00:24.4]} 10... b5 {[%clk 0:02:49.3]} 11.
Nf1 {[%clk 0:00:24.4]} 11... b4 {[%clk 0:02:49]} 12. Bf4 {[%clk 0:00:24.9]}
12... a5 {[%clk 0:02:49.3]} 13. h4 {[%clk 0:00:25.5]} 13... a4 {[%clk
0:02:49.6]} 14. N1h2 {[%clk 0:00:26.2]} 14... a3 {[%clk 0:02:49.8]} 15. b3
{[%clk 0:00:26.8]} 15... Ba6 {[%clk 0:02:49.6]} 16. h5 {[%clk 0:00:24.4]} 16...
Nd4 {[%clk 0:02:46.8]} 17. Nxd4 {[%clk 0:00:24.1]} 17... cxd4 {[%clk 0:02:47.7]}
18. Qg4 {[%clk 0:00:24.7]} 18... Kh8 {[%clk 0:02:46]} 19. Re2 {[%clk 0:00:23.2]}
19... Qc3 {[%clk 0:02:44.1]} 20. Rb1 {[%clk 0:00:19]} 20... Rac8 {[%clk
0:02:41.2]} 21. Nf3 {[%clk 0:00:18.9]} 21... Nc5 {[%clk 0:02:34.2]} 22. Bd2
{[%clk 0:00:14.9]} 22... Qxc2 {[%clk 0:02:34.2]} 23. Rc1 {[%clk 0:00:13]} 23...
Qxd3 {[%clk 0:02:25.7]} 24. Nxd4 {[%clk 0:00:11.7]} 24... Ne4 {[%clk 0:02:17.7]}
25. Be3 {[%clk 0:00:08.5]} 25... Rxc1+ {[%clk 0:02:16.2]} 26. Bxc1 {[%clk
0:00:09.4]} 26... Qxd4 {[%clk 0:02:16.2]} 0-1

[Event "*** Titled Tuesday Blitz"]
[Site "Chess.com"]
[Date "2021.02.16"]
[Round "6"]
[White "ljuks68"]
[Black "j2806"]
[Result "1-0"]
[WhiteElo "2389"]
[BlackElo "2123"]
[TimeControl "180+1"]
[EndTime "11:05:54 PST"]
[Termination "ljuks68 won by checkmate"]

1. e4 {[%clk 0:02:33.4]} 1... c5 {[%clk 0:02:58.6]} 2. Nf3 {[%clk 0:02:33]} 2...
d6 {[%clk 0:02:59.1]} 3. d4 {[%clk 0:02:33.4]} 3... cxd4 {[%clk 0:02:59.7]} 4.
Nxd4 {[%clk 0:02:33.3]} 4... Nf6 {[%clk 0:03:00.3]} 5. Nc3 {[%clk 0:02:33.3]}
5... a6 {[%clk 0:03:00.9]} 6. Bg5 {[%clk 0:02:32.6]} 6... e6 {[%clk 0:03:00.8]}
7. f4 {[%clk 0:02:32.6]} 7... Be7 {[%clk 0:03:01.4]} 8. Qf3 {[%clk 0:02:32.2]}
8... Qc7 {[%clk 0:03:02]} 9. O-O-O {[%clk 0:02:32.2]} 9... Nbd7 {[%clk
0:03:02.5]} 10. g4 {[%clk 0:02:32.4]} 10... b5 {[%clk 0:03:00.5]} 11. Bxf6
{[%clk 0:02:32.8]} 11... Nxf6 {[%clk 0:03:00.6]} 12. g5 {[%clk 0:02:33.3]} 12...
Nd7 {[%clk 0:03:00.4]} 13. f5 {[%clk 0:02:33.5]} 13... Bxg5+ {[%clk 0:02:56.7]}
14. Kb1 {[%clk 0:02:32.8]} 14... Nf6 {[%clk 0:02:46]} 15. fxe6 {[%clk
0:02:11.9]} 15... fxe6 {[%clk 0:02:42.1]} 16. e5 {[%clk 0:02:02]} 16... Bb7
{[%clk 0:02:37.1]} 17. Qg3 {[%clk 0:01:45.9]} 17... dxe5 {[%clk 0:02:26.6]} 18.
Rg1 {[%clk 0:01:23.4]} 18... Bf4 {[%clk 0:02:10.3]} 19. Nxe6 {[%clk 0:01:19.6]}
19... Qe7 {[%clk 0:01:35.9]} 20. Qxg7 {[%clk 0:00:57.7]} 20... Qxg7 {[%clk
0:01:32.8]} 21. Rxg7 {[%clk 0:00:56.4]} 21... Ra7 {[%clk 0:01:18.2]} 22. Nxb5
{[%clk 0:00:53.1]} 22... axb5 {[%clk 0:01:17.1]} 23. Bxb5+ {[%clk 0:00:52.3]}
23... Nd7 {[%clk 0:01:16.2]} 24. Bxd7# {[%clk 0:00:51.6]} 1-0